bitfinex/quotes_ETHUSD_20230118
["timestamp","ask_amount","ask_price","bid_price","bid_amount"]
[1674080006212,3.0,1523.3,1523.0,10.18675235]
[1674080006371,3.0,1523.3,1523.0,10.25275235]
[1674080006745,14.68753,1523.4,1523.0,10.25275235]
[1674080007319,13.68753,1523.4,1523.0,10.25275235]
[1674080008264,14.36981863,1523.4,1523.0,10.2494726]
[1674080008601,14.36981863,1523.4,1523.1,1.02494726]
[1674080009904,1.24068863,1523.4,1523.2,3.29174759]
[1674080010118,5.19952392,1523.4,1523.2,3.29174759]
[1674080010269,1.24068863,1523.4,1523.2,16.42186759]
[1674080010478,0.68228863,1523.4,1523.3,1.64218676]
[1674080010828,1.51723529,1523.5,1523.3,1.64218676]
[1674080010829,2.19952392,1523.5,1523.3,1.64218676]
[1674080011375,1.70712392,1523.5,1523.3,1.64218676]
[1674080011542,1.70712392,1523.5,1523.3,8.20686676]
[1674080011949,0.68228863,1523.5,1523.4,10.67669427]
[1674080012188,0.68228863,1523.5,1523.4,10.74269427]
[1674080016476,0.68228863,1523.5,1523.4,4.17843427]
[1674080016779,0.68228863,1523.5,1523.4,4.11243427]
[1674080018215,1.70712392,1523.5,1523.4,4.11243427]
[1674080019795,1.70712392,1523.5,1523.4,3.29174759]
[1674080020004,1.02483529,1523.5,1523.4,3.29174759]
[1674080020367,7.58866529,1523.5,1523.3,0.066]
[1674080020623,7.58866529,1523.5,1523.1,36.12747726]
[1674080020624,0.68318932,1523.4,1523.1,36.12747726]
[1674080020944,0.68318932,1523.3,1523.1,18.69844759]
[1674080021518,0.68318932,1523.3,1523.1,15.4067]
[1674080021825,20.37727932,1523.3,1523.1,0.066]
[1674080021936,2.03772793,1523.2,1523.1,0.002]
[1674080022307,15.85115725,1523.2,1522.9,8.9048]
[1674080022522,15.91715725,1523.2,1522.9,12.19654759]
[1674080022691,15.91715725,1523.2,1522.9,3.35774759]
[1674080022897,15.91715725,1523.2,1522.9,3.29174759]
[1674080023112,24.50746254,1523.2,1522.9,3.29174759]
[1674080023338,23.50746254,1523.2,1522.9,3.29174759]
[1674080023666,0.68318932,1523.1,1522.9,3.29174759]
[1674080025213,21.40468461,1523.1,1522.8,14.6591]
[1674080025421,21.40468461,1523.1,1522.8,17.95084759]
[1674080025422,21.47068461,1523.1,1522.8,17.95084759]
[1674080025828,0.68318932,1523.0,1522.8,17.95084759]
[1674080027188,0.68318932,1523.0,1522.8,14.6591]
[1674080027423,7.24919932,1523.0,1522.8,14.6591]
[1674080027626,7.31519932,1523.0,1522.8,14.6591]
[1674080027845,8.34003461,1523.0,1522.8,0.066]
[1674080028107,23.61913807,1523.0,1522.6,22.51398098]
[1674080028258,23.61913807,1523.0,1522.6,19.23833857]
[1674080028508,0.68318932,1522.9,1522.6,19.23833857]
[1674080028664,7.24979932,1522.9,1522.6,19.23833857]
[1674080028873,7.31579932,1522.9,1522.6,19.23833857]
[1674080029328,6.63261,1522.9,1522.6,19.23833857]
[1674080030293,0.066,1522.9,1522.6,43.81460643]
[1674080030528,3.68318932,1523.0,1522.6,43.81460643]
[1674080030826,3.68318932,1523.0,1522.6,43.81233059]
[1674080030980,3.68318932,1523.0,1522.7,10.94840306]
[1674080031190,3.68318932,1523.0,1522.7,11.01440306]
[1674080032466,4.17568932,1523.0,1522.7,11.01440306]
[1674080032675,3.68318932,1523.0,1522.7,11.01440306]
[1674080033105,10.24918932,1523.0,1522.7,11.01440306]
[1674080033459,10.31518932,1523.0,1522.7,11.01440306]
[1674080033670,10.31518932,1523.0,1522.8,1.10144031]
[1674080033884,10.31518932,1523.0,1522.7,11.01440306]
[1674080034664,10.31518932,1523.0,1522.7,4.44723306]
[1674080034876,10.31518932,1523.0,1522.7,4.38123306]
[1674080038972,16.88118932,1523.0,1522.6,30.67680059]
[1674080039652,16.88118932,1523.0,1522.6,24.10931059]
[1674080039653,23.44718932,1523.0,1522.6,24.10931059]
[1674080039830,16.88118932,1523.0,1522.6,30.67698059]
[1674080040239,0.066,1523.0,1522.8,6.56685]
[1674080040448,1.17568932,1523.1,1522.8,16.49144759]
[1674080040449,0.68318932,1523.1,1522.8,16.49144759]
[1674080040746,0.68318932,1523.1,1522.9,3.29174759]
[1674080041029,0.68318932,1523.1,1522.9,9.85802759]
[1674080041239,0.68318932,1523.1,1522.9,12.22980035]
[1674080042398,4.77402461,1523.2,1522.9,12.22980035]
[1674080042601,4.70802461,1523.2,1522.9,18.79621035]
[1674080043704,0.68318932,1523.1,1522.9,12.22980035]
[1674080043968,0.68318932,1523.1,1522.9,3.35774759]
[1674080044124,7.24874932,1523.1,1522.8,6.63265]
[1674080044484,7.31474932,1523.1,1522.8,9.92439759]
[1674080045080,8.33958461,1523.1,1522.8,9.92439759]
[1674080045296,7.31474932,1523.1,1522.8,9.92439759]
[1674080045538,7.31474932,1523.1,1522.8,3.35774759]
[1674080045753,7.31474932,1523.1,1522.8,3.29174759]
[1674080046243,0.74918932,1523.1,1523.0,6.56598]
[1674080046479,0.68318932,1523.1,1523.0,9.92372759]
[1674080047089,4.77402461,1523.2,1523.0,9.92372759]
[1674080047297,1.0,1523.1,1523.0,0.066]
[1674080047515,1.0,1523.1,1522.8,6.63243]
[1674080047825,0.68318932,1523.1,1522.9,3.29174759]
[1674080048247,7.24874932,1523.1,1522.9,3.29174759]
[1674080048523,7.31474932,1523.1,1522.9,3.29174759]
[1674080048882,0.066,1523.1,1522.9,3.29174759]
[1674080049092,0.002,1523.1,1522.9,3.29174759]
[1674080049302,11.33936461,1523.2,1522.9,11.50704335]
[1674080049543,11.33936461,1523.2,1522.9,9.92415759]
[1674080049983,10.31452932,1523.2,1522.9,9.92415759]
[1674080050712,3.74918932,1523.2,1523.0,9.85770759]
[1674080050932,3.68318932,1523.2,1523.0,9.92370759]
[1674080052617,0.68318932,1523.2,1523.0,9.92370759]
[1674080052918,8.27317461,1523.2,1523.0,0.066]
[1674080053135,8.33917461,1523.2,1522.9,15.4148]
[1674080053323,10.92271678,1523.2,1522.9,18.70654759]
[1674080053517,10.92271678,1523.2,1522.9,18.70366971]
[1674080054254,0.68318932,1523.1,1522.9,18.70366971]
[1674080057964,1.70802461,1523.1,1522.9,18.70366971]
[1674080058293,0.68318932,1523.0,1522.9,15.41192212]
[1674080058906,7.24916932,1523.0,1522.9,0.066]
[1674080059096,7.26516932,1523.0,1522.9,0.05]
[1674080059306,7.31516932,1523.0,1522.7,16.1268]
[1674080059524,7.31516932,1523.0,1522.7,19.41854759]
[1674080059856,7.31516932,1523.0,1522.7,25.98581759]
[1674080060280,8.34000461,1523.0,1522.7,25.98581759]
[1674080060502,0.68318932,1522.9,1522.7,25.98581759]
[1674080060657,0.68318932,1522.9,1522.7,19.41854759]
[1674080060871,7.24961932,1522.9,1522.7,19.41854759]
[1674080061082,7.31561932,1522.9,1522.7,19.41854759]
[1674080061289,9.34045461,1522.9,1522.7,19.41854759]
[1674080061693,8.34045461,1522.9,1522.7,19.41854759]
[1674080062962,0.68318932,1522.8,1522.7,0.066]
[1674080063169,16.81688932,1522.8,1522.6,0.16401514]
[1674080063382,17.90772461,1522.8,1522.6,0.16401514]
[1674080063632,26.08812572,1522.8,1522.6,0.16401514]
[1674080064058,0.68318932,1522.7,1522.6,0.16401514]
[1674080064248,13.81774932,1522.7,1522.6,0.16401514]
[1674080064468,13.88374932,1522.7,1522.6,0.16401514]
[1674080065379,20.45102932,1522.7,1522.6,0.16401514]
[1674080065589,22.17812449,1522.7,1522.6,0.16401514]
[1674080068012,25.17812449,1522.7,1522.6,0.16401514]
[1674080068426,26.20295978,1522.7,1522.6,0.16401514]
[1674080068689,25.51977046,1522.7,1522.6,0.16401514]
[1674080068918,27.56137046,1522.7,1522.6,0.16401514]
[1674080069062,28.24477731,1522.7,1522.6,0.16401514]
[1674080069271,27.56137046,1522.7,1522.6,0.16401514]
[1674080070954,28.24455821,1522.7,1522.6,0.16401514]
[1674080071219,27.56137046,1522.7,1522.6,0.16401514]
[1674080072640,27.9027815,1522.7,1522.6,0.16401514]
[1674080073061,28.9269515,1522.7,1522.6,0.16401514]
[1674080074844,27.56070517,1522.7,1522.6,0.16401514]
[1674080075804,28.9269515,1522.7,1522.6,0.16401514]
[1674080076042,27.56070517,1522.7,1522.6,0.16401514]
[1674080076774,27.56070517,1522.7,1522.6,0.16088195]
[1674080077697,31.42452909,1522.7,1522.6,0.16088195]
[1674080077892,32.44741097,1522.7,1522.6,0.16088195]
[1674080078104,32.97352909,1522.7,1522.6,0.16088195]
[1674080078532,33.31198616,1522.7,1522.6,0.1309512]
[1674080078989,31.60728276,1522.7,1522.6,0.1309512]
[1674080079212,33.31087412,1522.7,1522.6,0.1309512]
[1674080079374,0.06696648,1522.5,1522.3,0.18102085]
[1674080079743,34.22243014,1522.4,1522.3,0.18102085]
[1674080079945,33.26637224,1522.4,1522.3,0.18102085]
[1674080080166,36.26637224,1522.4,1522.3,0.18102085]
[1674080080471,42.83494224,1522.4,1522.3,8.5e-07]
[1674080080623,44.44849335,1522.4,1522.3,8.5e-07]
[1674080081045,45.46944356,1522.4,1522.3,8.5e-07]
[1674080081630,47.00644356,1522.4,1522.3,8.5e-07]
[1674080081961,47.00644356,1522.4,1521.9,0.1874044]
[1674080081962,6.5691,1522.3,1521.9,0.1874044]
[1674080082094,1.549,1522.0,1521.9,0.1874044]
[1674080082317,28.3231,1522.0,1521.9,0.1874044]
[1674080082568,28.6191,1522.0,1521.9,0.1874044]
[1674080082886,31.6191,1522.0,1521.9,0.1874044]
[1674080083210,37.19475276,1522.0,1521.9,0.1874044]
[1674080083575,38.74375276,1522.0,1521.9,0.1874044]
[1674080083998,39.38049449,1522.0,1521.5,0.18739744]
[1674080084198,6.52174759,1521.9,1521.5,0.18739744]
[1674080084416,3.097,1521.6,1521.5,0.18739744]
[1674080084624,35.90682759,1521.6,1521.5,0.18739744]
[1674080084907,36.46582759,1521.6,1521.5,0.18739744]
[1674080085244,35.97282759,1521.6,1521.5,0.18739744]
[1674080085455,36.46582759,1521.6,1521.5,0.18739744]
[1674080085609,37.42720394,1521.6,1521.5,0.18739744]
[1674080088372,36.93420394,1521.6,1521.5,0.18739744]
[1674080092345,43.50622394,1521.6,1521.5,0.18739744]
[1674080092993,43.50622394,1521.6,1521.1,0.17266586]
[1674080093210,1.549,1521.3,1521.1,0.17266586]
[1674080093428,21.27025,1521.2,1521.1,0.17266586]
[1674080093643,24.28225,1521.2,1521.1,0.17266586]
[1674080093855,24.33625,1521.2,1521.1,0.17266586]
[1674080094086,26.06334517,1521.2,1521.1,0.17266586]
[1674080094225,26.78644517,1521.2,1521.1,0.17266586]
[1674080094546,26.55644517,1521.2,1521.1,0.17266586]
[1674080095000,26.78644517,1521.2,1521.1,0.17266586]
[1674080095899,30.07819276,1521.2,1521.1,5.86e-06]
[1674080096203,31.62119276,1521.2,1520.7,0.18882248]
[1674080096354,8.80565276,1521.1,1520.7,0.18882248]
[1674080096570,26.2988,1521.0,1520.7,0.18882248]
[1674080096769,3.0,1520.9,1520.7,0.18882248]
[1674080097114,19.72644,1520.8,1520.7,0.18882248]
[1674080097262,24.6977387,1520.8,1520.7,0.18882248]
[1674080097474,24.63599111,1520.8,1520.7,0.18882248]
[1674080097741,24.40599111,1520.8,1520.7,0.18882248]
[1674080099278,22.79244,1520.8,1520.7,0.18882248]
[1674080099493,9.64148,1520.8,1520.7,0.18882248]
[1674080099708,3.066,1520.8,1520.7,0.18882248]
[1674080099979,3.0,1520.8,1520.7,0.18882248]
[1674080100415,9.57548,1520.8,1520.7,0.18882248]
[1674080100631,9.64148,1520.8,1520.7,0.18882248]
[1674080101102,3.066,1520.8,1520.7,0.18882248]
[1674080101334,3.0,1520.8,1520.7,0.18882248]
[1674080101627,6.64136,1520.9,1520.7,3.48057007]
[1674080101628,0.066,1520.9,1520.7,3.48057007]
[1674080101817,6.60637,1521.1,1520.8,3.1092106]
[1674080101818,6.57474,1521.0,1520.8,3.1092106]
[1674080102042,6.57474,1521.0,1520.8,1.5662106]
[1674080102043,0.014,1521.0,1520.8,1.5662106]
[1674080102247,13.21487,1521.1,1520.8,1.5662106]
[1674080102418,13.21487,1521.1,1520.9,0.15662106]
[1674080103365,13.21487,1521.1,1520.8,1.21815359]
[1674080104161,0.066,1521.1,1520.8,1.21815359]
[1674080104378,6.63999,1521.2,1520.8,6.04690118]
[1674080104535,6.63999,1521.2,1520.8,6.11290118]
[1674080104750,13.21398,1521.2,1520.8,1.28415359]
[1674080105113,6.57462,1521.0,1520.8,1.21815359]
[1674080105285,6.64062,1521.0,1520.8,1.21815359]
[1674080105639,3.0,1520.9,1520.8,1.21815359]
[1674080106213,16.3801,1520.9,1520.8,1.21815359]
[1674080106458,9.64105,1520.9,1520.8,1.21815359]
[1674080107083,16.2161,1520.9,1520.8,1.21815359]
[1674080107263,3.066,1520.9,1520.8,1.21815359]
[1674080107467,3.0,1520.9,1520.8,1.21815359]
[1674080107798,3.066,1521.0,1520.8,1.21815359]
[1674080108136,3.066,1521.1,1520.9,0.12181536]
[1674080108316,3.066,1521.2,1520.9,0.12181536]
[1674080108525,3.0,1521.2,1520.9,0.12181536]
[1674080110944,19.72386,1521.0,1520.8,1.28415359]
[1674080111148,16.1501,1520.9,1520.8,1.21815359]
[1674080112606,0.066,1520.9,1520.8,1.3588512]
[1674080112884,6.64062,1521.0,1520.8,1.3588512]
[1674080113515,0.066,1521.0,1520.8,6.19959879]
[1674080113679,3.0,1521.1,1520.9,0.61995988]
[1674080116880,3.0,1521.1,1520.9,0.61786772]
[1674080117091,0.066,1521.2,1521.0,3.29174759]
[1674080117305,3.0,1521.3,1521.1,0.32917476]
[1674080117476,3.0,1521.3,1521.1,3.62092235]
[1674080117690,0.5591,1521.4,1521.1,16.76913235]
[1674080117691,3.066,1521.4,1521.1,16.76913235]
[1674080117997,3.0,1521.4,1521.1,16.83513235]
[1674080118401,0.066,1521.5,1521.2,3.29174759]
[1674080118613,7.13104,1521.6,1521.2,11.70360083]
[1674080118902,7.13104,1521.6,1521.2,18.34331083]
[1674080119029,7.13104,1521.6,1521.2,34.11641083]
[1674080119241,7.13104,1521.6,1521.2,27.54301083]
[1674080119242,20.27526,1521.6,1521.2,27.54301083]
[1674080119767,13.70306,1521.6,1521.2,27.54301083]
[1674080119976,3.0,1521.5,1521.2,34.11676083]
[1674080122821,3.0,1521.5,1521.2,40.69051083]
[1674080123078,3.559,1521.6,1521.3,10.64213108]
[1674080123234,3.493,1521.6,1521.3,10.70813108]
[1674080123987,3.493,1521.6,1521.3,17.28145108]
[1674080125444,3.493,1521.6,1521.3,20.57319867]
[1674080125708,3.493,1521.6,1521.4,2.05731987]
[1674080125895,3.493,1521.6,1521.4,8.63006987]
[1674080126101,0.493,1521.6,1521.4,8.69606987]
[1674080126318,0.493,1521.6,1521.4,6.63875]
[1674080126717,0.493,1521.6,1521.4,0.066]
[1674080126924,10.81120175,1521.7,1521.4,9.86456759]
[1674080127173,10.31820175,1521.7,1521.4,9.93056759]
[1674080127343,10.31820175,1521.7,1521.4,12.64516946]
[1674080127344,3.74657175,1521.7,1521.4,12.64516946]
[1674080127558,3.68057175,1521.7,1521.4,12.64516946]
[1674080127764,3.0,1521.7,1521.4,12.64516946]
[1674080128189,3.68057175,1521.7,1521.4,12.64516946]
[1674080128401,3.68057175,1521.7,1521.4,19.21805946]
[1674080129081,16.82379175,1521.7,1521.4,0.066]
[1674080129247,16.82379175,1521.7,1521.3,6.63908]
[1674080129248,17.90864938,1521.7,1521.3,6.63908]
[1674080129442,17.91064938,1521.7,1521.3,9.93082759]
[1674080129892,17.91064938,1521.7,1521.4,3.29174759]
[1674080130100,10.31816175,1521.7,1521.4,9.86461759]
[1674080130402,3.74657175,1521.7,1521.4,9.93061759]
[1674080130717,3.68057175,1521.7,1521.4,9.93061759]
[1674080131117,19.6883382,1521.7,1521.4,0.066]
[1674080131327,19.7543382,1521.7,1521.3,6.63908]
[1674080131536,19.7543382,1521.7,1521.3,9.93082759]
[1674080132115,19.7543382,1521.7,1521.3,16.50414759]
[1674080132116,18.73348057,1521.7,1521.3,16.50414759]
[1674080132498,0.74657175,1521.7,1521.4,3.29174759]
[1674080132734,14.69010649,1521.8,1521.5,16.43617759]
[1674080132735,0.09940886,1521.8,1521.5,16.43617759]
[1674080132908,0.03340886,1521.8,1521.5,23.07463759]
[1674080133117,0.03340886,1521.8,1521.6,2.30746376]
[1674080133788,0.03340886,1521.8,1521.6,12.17118135]
[1674080133957,0.03340886,1521.8,1521.6,18.80920135]
[1674080134430,0.0299088,1521.8,1521.6,18.80920135]
[1674080135526,0.0299088,1521.8,1521.6,0.066]
[1674080135736,0.0299088,1521.8,1521.5,36.49601]
[1674080136001,0.0299088,1521.8,1521.5,39.78775759]
[1674080136740,9.67014886,1521.9,1521.5,39.78775759]
[1674080136741,9.20005766,1521.9,1521.5,39.78775759]
[1674080138242,2.62931766,1521.9,1521.5,39.78775759]
[1674080138555,2.56331766,1521.9,1521.7,6.57159]
[1674080138715,2.56331766,1521.9,1521.7,6.63759]
[1674080139149,0.74657175,1522.0,1521.7,16.50092759]
[1674080139150,3.74657175,1522.0,1521.7,16.50092759]
[1674080139360,3.68057175,1522.0,1521.7,16.50092759]
[1674080139569,3.68057175,1522.0,1521.7,12.78898292]
[1674080139778,9.57237,1522.0,1521.7,6.21539292]
[1674080140023,9.63637,1522.0,1521.7,6.21739292]
[1674080140241,9.63637,1522.0,1521.7,0.066]
[1674080140539,9.63637,1522.0,1521.7,6.57159]
[1674080140758,9.63637,1522.0,1521.7,0.066]
[1674080140936,16.20674,1522.0,1521.6,18.73331576]
[1674080141291,16.20674,1522.0,1521.7,1.87333158]
[1674080141813,16.20674,1522.0,1521.6,5.58977576]
[1674080142030,22.77711,1522.0,1521.6,4.04477576]
[1674080142332,22.77711,1522.0,1521.6,3.97877576]
[1674080143500,0.4929,1521.9,1521.6,3.97877576]
[1674080143650,7.06386,1521.9,1521.6,3.97877576]
[1674080144017,7.12986,1521.9,1521.6,3.97877576]
[1674080148955,0.066,1521.9,1521.6,20.41454335]
[1674080149194,3.5589,1522.0,1521.7,6.96943758]
[1674080149391,3.5589,1522.0,1521.8,7.26789376]
[1674080149392,3.01,1522.0,1521.8,7.26789376]
[1674080149716,3.74657175,1522.1,1521.8,7.33389376]
[1674080150017,10.74329175,1522.1,1521.8,0.066]
[1674080150324,17.37921175,1522.1,1521.8,15.1932]
[1674080150631,10.80929175,1522.1,1521.8,15.2592]
[1674080150861,4.23937175,1522.1,1521.8,25.12208759]
[1674080151004,4.17337175,1522.1,1521.8,30.03786811]
[1674080151208,10.74327175,1522.1,1521.8,30.03786811]
[1674080151478,10.31647175,1522.1,1521.8,30.03786811]
[1674080152055,3.74657175,1522.1,1521.8,30.03786811]
[1674080152266,3.68057175,1522.1,1521.9,3.00378681]
[1674080155331,3.68057175,1522.1,1521.8,38.14600811]
[1674080155543,3.68057175,1522.1,1521.8,36.60900811]
[1674080155753,20.79594763,1522.2,1522.0,8.415]
[1674080155754,0.74657175,1522.2,1522.0,8.415]
[1674080156082,1.05426649,1522.3,1522.0,8.415]
[1674080156083,0.03340886,1522.3,1522.1,24.53535759]
[1674080156278,0.03340886,1522.3,1522.2,4.84074759]
[1674080156483,0.03340886,1522.3,1522.2,24.54903759]
[1674080156697,0.03340886,1522.3,1522.2,24.61503759]
[1674080156921,0.03340886,1522.3,1522.2,30.05032835]
[1674080157340,0.03340886,1522.3,1522.2,19.77429]
[1674080157582,0.71398061,1522.3,1522.2,0.066]
[1674080157748,0.03340886,1522.3,1522.2,9.86117759]
[1674080157965,0.03340886,1522.3,1522.2,9.92717759]
[1674080158391,0.03340886,1522.3,1522.2,16.49660759]
[1674080158835,0.03340886,1522.3,1522.2,16.8290663]
[1674080159050,0.03340886,1522.3,1522.2,20.71407593]
[1674080160271,0.03340886,1522.3,1522.2,16.8290663]
[1674080161133,0.03340886,1522.3,1522.2,10.2596363]
[1674080161791,0.71398061,1522.3,1522.2,0.39845871]
[1674080162112,0.71398061,1522.3,1522.2,0.33245871]
[1674080162266,1.73483824,1522.3,1522.2,0.33245871]
[1674080162476,4.73483824,1522.3,1522.2,0.33245871]
[1674080162824,5.94729067,1522.3,1522.1,15.5175]
[1674080163036,0.68057175,1522.2,1522.1,0.06420915]
[1674080163253,20.6649483,1522.3,1521.9,21.62451915]
[1674080163418,2.55325189,1522.2,1521.9,24.91626674]
[1674080163628,3.0,1522.1,1521.9,24.91626674]
[1674080164119,0.066,1522.2,1521.9,39.60672674]
[1674080164120,3.066,1522.2,1521.9,39.60672674]
[1674080164264,5.29363824,1522.3,1521.9,39.60672674]
[1674080164473,7.2762373,1522.3,1521.9,39.60672674]
[1674080164791,7.2762373,1522.3,1521.9,38.05772674]
[1674080165751,0.68057175,1522.2,1521.9,38.05772674]
[1674080165956,3.0,1522.2,1521.9,38.05772674]
[1674080166416,5.29363824,1522.3,1521.9,38.05772674]
[1674080166732,5.29363824,1522.3,1522.1,6.56987]
[1674080166944,5.29363824,1522.3,1522.1,6.63407915]
[1674080167541,0.68057175,1522.2,1522.1,6.63407915]
[1674080167749,3.68057175,1522.2,1522.1,6.63407915]
[1674080168175,3.0,1522.2,1522.1,0.06420915]
[1674080168386,3.0,1522.2,1522.0,16.49609674]
[1674080168598,5.29363824,1522.3,1522.0,16.49609674]
[1674080168822,0.68057175,1522.2,1522.0,9.92602674]
[1674080169070,0.68057175,1522.2,1522.0,3.35595674]
[1674080169388,3.0,1522.2,1522.0,3.29174759]
[1674080169754,3.68057175,1522.2,1522.0,3.29174759]
[1674080174072,3.68057175,1522.2,1522.0,9.86202759]
[1674080174288,3.68057175,1522.2,1522.0,13.73192041]
[1674080174692,3.67786384,1522.2,1522.0,13.73192041]
[1674080175915,3.67786384,1522.2,1522.0,20.30222041]
[1674080176063,3.67786384,1522.2,1522.0,13.73192041]
[1674080177220,4.69872147,1522.2,1522.0,13.73192041]
[1674080178060,4.69872147,1522.2,1522.0,0.06420915]
[1674080178272,4.69872147,1522.2,1521.9,28.19484915]
[1674080178499,4.69872147,1522.2,1521.9,31.48659674]
[1674080179222,0.68057175,1522.1,1521.9,24.91605674]
[1674080179426,0.68057175,1522.1,1521.9,18.34555674]
[1674080179674,0.68057175,1522.1,1521.9,24.91627674]
[1674080179900,0.68057175,1522.0,1521.9,24.91627674]
[1674080180478,1.70142938,1522.0,1521.9,15.05380915]
[1674080180725,3.85071469,1522.0,1521.9,0.06420915]
[1674080180943,3.85071469,1522.0,1521.8,9.85310915]
[1674080181153,10.42101469,1522.0,1521.8,9.85310915]
[1674080181325,10.48701469,1522.0,1521.8,0.06420915]
[1674080181689,11.50787232,1522.0,1521.7,21.76385915]
[1674080181895,11.50787232,1522.0,1521.7,25.05560674]
[1674080182745,11.33772938,1522.0,1521.7,15.19230915]
[1674080183058,0.68057175,1521.9,1521.7,15.19230915]
[1674080186082,1.70142938,1521.9,1521.7,15.19230915]
[1674080186272,0.68057175,1521.9,1521.7,15.19230915]
[1674080192294,17.90825938,1522.0,1521.7,15.19230915]
[1674080192519,15.33578938,1521.9,1521.7,15.19230915]
[1674080192730,9.57116,1521.8,1521.7,0.06420915]
[1674080192944,16.88889175,1521.8,1521.6,0.06420915]
[1674080193098,19.38622969,1521.8,1521.6,0.06420915]
[1674080193312,25.95738969,1521.8,1521.5,15.39780915]
[1674080195656,25.95738969,1521.8,1521.5,0.06420915]
[1674080195998,7.06468,1521.7,1521.3,44.23351915]
[1674080196153,3.0,1521.6,1521.4,3.29174759]
[1674080197635,3.0,1521.6,1521.4,9.86460759]
[1674080197851,3.0,1521.6,1521.4,9.92881674]
[1674080198569,4.013068,1521.6,1521.4,0.06420915]
[1674080198787,24.40989975,1521.6,1521.3,0.06420915]
[1674080199127,24.40989975,1521.6,1521.2,0.17593644]
[1674080199128,13.63841,1521.5,1521.2,0.17593644]
[1674080199339,4.363841,1521.4,1521.2,0.17593644]
[1674080199517,10.936761,1521.4,1521.2,0.17259414]
[1674080199721,11.002761,1521.4,1521.2,0.17259414]
[1674080199936,17.575681,1521.4,1521.2,0.17259414]
[1674080201563,24.148601,1521.4,1521.2,0.17259414]
[1674080204713,17.575681,1521.4,1521.2,0.17259414]
[1674080207369,0.4931,1521.3,1521.2,0.17259414]
[1674080207882,6.57332,1521.3,1521.2,0.17259414]
[1674080208200,9.63932,1521.3,1521.2,0.17259414]
[1674080209651,10.39171667,1521.3,1521.2,0.17259414]
[1674080211410,3.066,1521.3,1521.2,0.17259414]
[1674080211609,9.57332,1521.3,1521.2,0.17259414]
[1674080211815,9.63932,1521.3,1521.2,0.17259414]
[1674080212030,10.13242,1521.3,1521.2,0.17259414]
[1674080213100,9.63932,1521.3,1521.2,0.17259414]
[1674080213362,18.6275671,1521.3,1521.2,0.17259414]
[1674080213759,19.1206671,1521.3,1521.2,0.17259414]
[1674080215291,25.6939871,1521.3,1521.2,0.17259414]
[1674080217406,25.2008871,1521.3,1521.2,0.17259414]
[1674080217991,25.2008871,1521.3,1521.2,0.12259414]
[1674080222517,16.21264,1521.3,1521.2,0.12259414]
[1674080222662,0.066,1521.3,1521.2,3.41434173]
[1674080222881,7.06602,1521.4,1521.2,3.41434173]
[1674080222882,0.066,1521.4,1521.2,3.41434173]
[1674080223124,7.25240175,1521.7,1521.3,19.04918176]
[1674080223297,7.25240175,1521.7,1521.3,25.68667091]
[1674080223298,7.31840175,1521.7,1521.3,25.68667091]
[1674080223986,7.31840175,1521.7,1521.4,3.29174759]
[1674080223987,0.066,1521.7,1521.4,3.29174759]
[1674080224160,8.30485938,1521.8,1521.5,3.62092235]
[1674080224161,0.74657175,1521.8,1521.5,3.62092235]
[1674080224504,1.76742938,1521.9,1521.6,3.29174759]
[1674080224714,1.70142938,1521.9,1521.7,3.29174759]
[1674080224940,8.27220938,1521.9,1521.7,3.29174759]
[1674080225081,7.31735175,1521.9,1521.7,3.29174759]
[1674080225564,20.45886175,1521.9,1521.6,0.06420915]
[1674080225883,24.10633504,1521.9,1521.4,0.06420915]
[1674080226194,24.10633504,1521.9,1521.3,32.04005417]
[1674080226195,20.45886175,1521.9,1521.5,3.29174759]
[1674080226342,3.0,1521.8,1521.6,3.29174759]
[1674080226547,3.74657175,1521.9,1521.7,3.29174759]
[1674080226801,3.68057175,1521.9,1521.7,3.62092235]
[1674080227851,4.17347175,1521.9,1521.7,3.62092235]
[1674080228029,3.68057175,1521.9,1521.7,3.62092235]
[1674080228516,16.82204175,1521.9,1521.6,14.58700915]
[1674080228656,17.38094175,1521.9,1521.6,14.58700915]
[1674080228865,16.88804175,1521.9,1521.6,14.58700915]
[1674080230089,24.47963938,1521.9,1521.6,14.58700915]
[1674080230397,19.71477,1521.7,1521.6,0.06420915]
[1674080230546,23.46134175,1521.7,1521.3,9.77370915]
[1674080230759,23.46134175,1521.7,1521.3,13.06545674]
[1674080230969,3.0,1521.6,1521.3,13.06545674]
[1674080231197,9.57229,1521.6,1521.3,26.24435674]
[1674080231388,9.63829,1521.6,1521.3,26.24435674]
[1674080231641,16.21058,1521.6,1521.3,26.24035674]
[1674080231810,16.21058,1521.6,1521.3,16.53485674]
[1674080232446,16.89115175,1521.6,1521.3,16.53485674]
[1674080233457,0.066,1521.6,1521.4,3.29174759]
[1674080233659,0.066,1521.7,1521.4,9.86446759]
[1674080233808,7.31802175,1521.8,1521.4,9.92867674]
[1674080234018,0.74657175,1521.8,1521.5,0.99286767]
[1674080234228,7.25176175,1521.8,1521.5,0.99286767]
[1674080234475,7.31776175,1521.8,1521.5,0.99286767]
[1674080234668,3.0,1521.7,1521.5,0.99286767]
[1674080235836,0.066,1521.8,1521.6,3.29174759]
[1674080236061,0.74657175,1521.9,1521.7,0.32917476]
[1674080236244,3.0,1521.9,1521.7,0.32917476]
[1674080238867,9.57074,1521.9,1521.7,0.32917476]
[1674080239190,9.57074,1521.9,1521.6,17.05635674]
[1674080239191,9.63674,1521.9,1521.6,17.05635674]
[1674080239384,9.63674,1521.9,1521.7,3.29174759]
[1674080239385,3.066,1521.9,1521.7,3.29174759]
[1674080239592,3.0,1521.9,1521.7,3.29174759]
[1674080240854,0.74657175,1522.0,1521.8,3.29174759]
[1674080241082,1.02085763,1522.1,1521.9,3.62092235]
[1674080241083,0.68057175,1522.1,1521.9,3.62092235]
[1674080241275,0.68057175,1522.1,1522.0,3.29174759]
[1674080241486,1.74240737,1522.2,1522.0,3.29174759]
[1674080241749,1.74240737,1522.2,1522.0,17.40324759]
[1674080242064,1.74240737,1522.2,1522.0,19.87127541]
[1674080242294,0.72154974,1522.2,1522.0,19.87127541]
[1674080242445,3.72154974,1522.2,1522.1,3.29174759]
[1674080242884,7.29097974,1522.2,1522.0,14.17570915]
[1674080243096,7.29097974,1522.2,1522.0,17.46745674]
[1674080243097,7.35697974,1522.2,1522.0,17.46745674]
[1674080245003,13.92640974,1522.2,1522.0,17.46745674]
[1674080245216,17.03833736,1522.2,1522.0,17.46745674]
[1674080246793,10.46890736,1522.2,1522.0,17.46745674]
[1674080247627,1.28034974,1522.2,1522.0,17.46745674]
[1674080247852,0.4928,1522.1,1521.8,6.875]
[1674080248166,29.06718109,1522.1,1522.0,0.016]
[1674080248314,29.06718109,1522.1,1521.5,12.9579]